bitfinex-derivatives/quotes_SOLF0:USTF0_20240827
["timestamp","ask_amount","ask_price","bid_price","bid_amount"]
[1724729449127,3.22806656,158.24,158.19,7.79]
[1724729449629,0.04117349,158.23,158.2,0.04110272]
[1724729450527,3.1596,158.21,158.2,0.04110272]
[1724729453727,3.1605,158.17,158.03,31.16]
[1724729453934,3.1605,158.17,158.13,7.79]
[1724729454838,3.20073663,158.17,158.13,7.83490208]
[1724729455038,0.04023663,158.17,158.15,7.79]
[1724729458637,3.20063663,158.17,158.15,7.79]
[1724729460240,0.04023663,158.17,158.13,7.83490208]
[1724729460743,3.1609,158.15,158.13,0.04490208]
[1724729471248,3.1609,158.15,158.13,7.83490208]
[1724729475943,3.1609,158.15,158.13,0.04490208]
[1724729477341,0.04023663,158.17,158.13,0.04490208]
[1724729477540,0.04023663,158.17,158.13,10.99610208]
[1724729477750,0.04023663,158.17,158.13,7.83490208]
[1724729478056,0.04023663,158.17,158.16,10.9506]
[1724729481866,0.04023663,158.17,158.16,3.1606]
[1724729482065,0.04023663,158.17,158.16,10.9506]
[1724729482859,0.04023663,158.17,158.16,7.79]
[1724729483064,0.04023663,158.17,158.14,11.63]
[1724729483567,0.04023663,158.17,158.14,14.791]
[1724729483766,0.04023663,158.17,158.14,11.63]
[1724729483967,0.04023663,158.17,158.14,3.84]
[1724729484168,0.04023663,158.17,158.13,7.83490208]
[1724729484969,3.1607,158.16,158.13,10.99610208]
[1724729486161,3.20073663,158.17,158.13,10.99610208]
[1724729486573,0.04023663,158.17,158.15,7.79]
[1724729486768,0.04023663,158.17,158.13,0.04490208]
[1724729486769,0.04023663,158.17,158.16,7.79]
[1724729487769,0.04023663,158.17,158.16,10.9506]
[1724729503372,0.04023663,158.17,158.13,1.27820208]
[1724729503373,0.04023663,158.17,158.13,0.04490208]
[1724729503577,0.04023663,158.17,158.14,7.79]
[1724729503773,0.04023663,158.17,158.16,7.79]
[1724729504276,0.04023663,158.17,158.14,7.79]
[1724729504575,0.04023663,158.17,158.13,0.04490208]
[1724729505086,3.161,158.15,158.13,0.04490208]
[1724729506681,10.951,158.14,158.13,0.04490208]
[1724729506878,10.951,158.14,158.08,3.84]
[1724729506879,7.79,158.14,158.08,3.84]
[1724729507878,7.79,158.14,158.09,0.04194262]
[1724729507879,0.04329832,158.13,158.09,0.04194262]
[1724729508387,3.1615,158.12,158.09,0.04194262]
[1724729509079,3.1616,158.11,158.09,0.04194262]
[1724729516186,3.1616,158.11,158.09,3.14336588]
[1724729516885,3.1616,158.11,158.09,0.04194262]
[1724729517088,3.1618,158.1,158.09,0.04194262]
[1724729518087,3.1617,158.11,158.09,0.04194262]
[1724729518289,0.04329832,158.13,158.09,0.04194262]
[1724729519087,3.1618,158.11,158.09,0.04194262]
[1724729520684,0.04329832,158.13,158.1,7.79]
[1724729520888,0.04329832,158.13,158.12,7.79]
[1724729521492,1.2417,158.2,158.12,7.79]
[1724729521689,1.2417,158.2,158.19,7.79]
[1724729522290,3.16,158.2,158.19,7.79]
[1724729524489,3.16,158.2,158.18,0.04774275]
[1724729526189,0.04047768,158.21,158.18,0.04774275]
[1724729526387,0.04047768,158.21,158.2,7.79]
[1724729529889,0.04047768,158.21,158.2,10.9498]
[1724729533899,1.2417,158.26,158.22,3.1593]
[1724729534102,1.2586,158.28,158.24,7.79]
[1724729534398,1.2586,158.28,158.19,31.16]
[1724729534399,1.2586,158.28,158.27,7.79]
[1724729535307,0.04556728,158.29,158.27,7.79]
[1724729539398,0.04556728,158.29,158.28,7.79]
[1724729541805,0.04556728,158.29,158.28,10.9482]
[1724729543407,4.4692,158.33,158.31,7.79]
[1724729544697,3.1573,158.33,158.31,7.79]
[1724729545501,0.04299524,158.34,158.31,7.79]
[1724729545807,0.04299524,158.34,158.33,7.79]
[1724729546307,0.04299524,158.34,158.3,0.04237768]
[1724729546506,7.83299524,158.34,158.3,0.04237768]
[1724729546707,3.1575,158.32,158.3,0.04237768]
[1724729547008,0.04299524,158.34,158.3,7.83237768]
[1724729548401,3.1574,158.33,158.3,7.83237768]
[1724729549008,3.1574,158.33,158.31,7.79]
[1724729551904,0.04299524,158.34,158.3,0.04237768]
[1724729552811,3.1576,158.32,158.3,0.04237768]
[1724729553708,3.1576,158.32,158.3,7.83237768]
[1724729558619,3.1573,158.33,158.3,7.83237768]
[1724729563023,3.1573,158.33,158.31,7.79]
[1724729563724,3.20009524,158.34,158.31,7.79]
[1724729564326,0.04299524,158.34,158.3,0.04237768]
[1724729564828,0.04299524,158.34,158.3,3.20017768]
[1724729564829,3.1574,158.33,158.3,3.20017768]
[1724729565131,3.1574,158.33,158.3,10.99017768]
[1724729566422,0.04299524,158.34,158.3,7.83237768]
[1724729566621,0.04299524,158.34,158.32,7.79]
[1724729566622,3.20009524,158.34,158.32,7.79]
[1724729567331,3.1572,158.33,158.32,7.79]
[1724729567725,0.04299524,158.34,158.32,7.79]
[1724729568028,3.20009524,158.34,158.32,7.79]
[1724729569330,0.04299524,158.34,158.3,0.04237768]
[1724729569932,3.1573,158.33,158.3,0.04237768]
[1724729573138,3.1573,158.33,158.3,3.20017768]
[1724729574737,3.1573,158.33,158.31,7.79]
[1724729575230,3.20009524,158.34,158.31,10.9476]
[1724729575737,0.04299524,158.34,158.33,7.79]
[1724729576036,0.04299524,158.34,158.33,10.9472]
[1724729577137,0.04299524,158.34,158.33,7.79]
[1724729577336,0.04299524,158.34,158.32,14.7874]
[1724729577535,0.04299524,158.34,158.32,11.63]
[1724729578136,0.04299524,158.34,158.33,7.79]
[1724729579131,3.19999524,158.34,158.31,7.79]
[1724729579334,0.04299524,158.34,158.3,7.04017768]
[1724729579734,0.04299524,158.34,158.3,3.88237768]
[1724729579936,0.04299524,158.34,158.3,0.04237768]
[1724729580734,3.1576,158.32,158.3,0.04237768]
[1724729581033,0.04299524,158.34,158.3,0.04237768]
[1724729581228,3.1576,158.31,158.3,0.04237768]
[1724729593734,3.1575,158.32,158.3,0.04237768]
[1724729593939,3.1575,158.32,158.31,7.79]
[1724729594137,3.1575,158.32,158.3,7.83237768]
[1724729594732,3.1572,158.33,158.31,7.79]
[1724729594931,0.04299524,158.34,158.31,7.79]
[1724729595145,0.04299524,158.34,158.33,10.9472]
[1724729595736,4.39113409,158.42,158.36,7.79]
[1724729595737,0.78317453,158.41,158.36,7.79]
[1724729595943,4.39113409,158.42,158.36,7.79]
[1724729596445,3.1563,158.38,158.36,7.79]
[1724729598138,0.04266704,158.39,158.36,7.79]
[1724729599348,7.83266704,158.39,158.35,0.04736034]
[1724729599548,3.1566,158.36,158.35,0.04736034]
[1724729600250,3.1566,158.36,158.3,3.1578]
[1724729600251,7.79,158.36,158.3,3.84]
[1724729601346,3.1572,158.34,158.31,0.046631]
[1724729601738,0.04451541,158.35,158.32,7.79]
[1724729603448,3.1572,158.34,158.31,7.836631]
[1724729603846,0.04451541,158.35,158.31,7.836631]
[1724729604039,3.1572,158.34,158.31,7.836631]
[1724729604240,0.04451541,158.35,158.31,7.836631]
[1724729604648,3.1573,158.33,158.31,0.046631]
[1724729608856,3.1571,158.34,158.31,0.046631]
[1724729609059,0.04451541,158.35,158.32,7.79]
[1724729609452,3.20151541,158.35,158.32,7.79]
[1724729610759,3.1571,158.34,158.32,7.79]
[1724729615771,3.1572,158.33,158.31,0.046631]
[1724729616369,0.04451541,158.35,158.31,0.046631]
[1724729618368,3.1574,158.33,158.31,0.046631]
[1724729619269,3.1571,158.34,158.31,7.836631]
[1724729619864,3.1573,158.33,158.31,0.046631]
[1724729620967,3.18104996,158.35,158.31,0.046631]
[1724729622274,3.1574,158.32,158.31,0.046631]
[1724729623167,3.1583,158.28,158.24,4.4774]
[1724729623369,7.79,158.3,158.25,3.09559382]
[1724729623574,7.79,158.3,158.23,74.56820588]
[1724729623767,7.79,158.3,158.23,73.88740588]
[1724729624381,0.04688631,158.28,158.25,0.04633419]
[1724729625373,3.1586,158.27,158.25,0.04633419]
[1724729628086,3.1586,158.26,158.25,0.04633419]
[1724729628970,3.1585,158.27,158.25,0.04633419]
[1724729629571,3.1585,158.27,158.25,7.83633419]
[1724729631177,0.04688631,158.28,158.25,10.99503419]
[1724729631379,0.04688631,158.28,158.27,7.79]
[1724729634883,0.04688631,158.28,158.27,10.9484]
[1724729639787,0.04688631,158.28,158.27,7.79]
[1724729640083,0.04688631,158.28,158.26,3.1586]
[1724729640283,0.04688631,158.28,158.26,10.9486]
[1724729640879,0.04688631,158.28,158.26,7.79]
[1724729641078,0.04688631,158.28,158.25,0.04633419]
[1724729641488,1.29258631,158.28,158.25,0.04633419]
[1724729642288,3.1586,158.26,158.25,0.04633419]
[1724729644288,3.1585,158.27,158.25,0.04633419]
[1724729645685,3.1586,158.26,158.25,0.04633419]
[1724729648388,3.1585,158.27,158.25,0.04633419]
[1724729650487,0.04688631,158.28,158.26,7.79]
[1724729651194,3.20518631,158.28,158.26,7.79]
[1724729651593,3.20518631,158.28,158.25,7.83633419]
[1724729651594,3.1584,158.27,158.25,7.83633419]
[1724729654790,3.1586,158.26,158.25,0.04633419]
[1724729654988,6.3613213,158.26,158.25,0.04633419]
[1724729659196,3.1593,158.23,158.19,3.1598]
[1724729659592,3.1593,158.23,158.18,11.63]
[1724729659996,3.1593,158.23,158.18,3.84]
[1724729660196,0.04715192,158.22,158.19,7.79]
[1724729660501,0.04715192,158.22,158.19,7.83644757]
[1724729661305,0.04715192,158.22,158.2,3.1598]
[1724729662999,0.04715192,158.22,158.21,10.9496]
[1724729664795,0.04715192,158.22,158.21,7.79]
[1724729667400,0.04715192,158.22,158.21,10.9496]
[1724729683212,0.04715192,158.22,158.19,3.20644757]
[1724729683421,0.04715192,158.22,158.19,0.04644757]
[1724729685524,3.1598,158.21,158.19,0.04644757]
[1724729686417,3.1598,158.21,158.19,7.83644757]
[1724729689722,3.20665192,158.22,158.19,7.83644757]
[1724729692117,3.20665192,158.22,158.19,0.04644757]
[1724729692323,0.04715192,158.22,158.21,7.79]
[1724729696117,0.04715192,158.22,158.21,10.9496]
[1724729699623,1.2598,158.27,158.24,3.159]
[1724729699822,1.2598,158.27,158.24,10.949]
[1724729700025,4.4184,158.27,158.24,7.79]
[1724729700224,4.4184,158.27,158.23,10.9492]
[1724729700722,4.4184,158.27,158.23,10.99657654]
[1724729700723,4.46268786,158.27,158.23,10.99657654]
[1724729701221,3.1586,158.26,158.23,7.83737654]
[1724729705424,3.1586,158.26,158.23,10.99657654]
[1724729705628,1.30408786,158.27,158.25,7.79]
[1724729705629,4.46258786,158.27,158.25,7.79]
[1724729708429,3.20278786,158.27,158.25,7.79]
[1724729710334,0.04428786,158.27,158.25,10.9488]
[1724729714128,0.04428786,158.27,158.26,10.9486]
[1724729714325,49.69579125,158.36,158.26,10.9486]
[1724729714326,3.82,158.37,158.26,42.77]
[1724729714637,5.0837,158.37,158.32,7.79]
[1724729714836,3.1572,158.34,158.32,7.79]
[1724729715634,7.79,158.34,158.31,0.04502872]
[1724729715833,1.2222,158.33,158.27,7.79]
[1724729716133,3.1578,158.31,158.27,10.9483]
[1724729716332,1.2222,158.33,158.27,3.1583]
[1724729716533,7.79,158.32,158.26,7.79]
[1724729716727,7.79,158.32,158.26,10.9486]
[1724729716929,0.04747027,158.31,158.27,0.04219471]
[1724729718132,3.158,158.3,158.27,0.04219471]
[1724729721342,0.04747027,158.31,158.28,7.79]
[1724729721637,0.04747027,158.31,158.29,7.79]
[1724729722542,0.04747027,158.31,158.29,10.948]
[1724729725233,0.04747027,158.31,158.27,0.04219471]
[1724729725234,3.20517027,158.31,158.28,3.1582]
[1724729725550,0.04747027,158.31,158.28,7.79]
[1724729725729,0.04747027,158.31,158.3,7.79]
[1724729726334,0.04747027,158.31,158.3,10.9478]
[1724729734845,0.04747027,158.31,158.29,3.158]
[1724729735140,0.04747027,158.31,158.29,10.948]
[1724729743050,0.04747027,158.31,158.29,7.79]
[1724729743255,3.1578,158.3,158.27,0.04219471]
[1724729745548,3.20517027,158.31,158.27,7.83219471]
[1724729745748,3.20517027,158.31,158.28,7.79]
[1724729745949,0.04747027,158.31,158.28,7.79]
[1724729746553,0.04747027,158.31,158.27,0.04219471]
[1724729746554,0.04747027,158.31,158.3,7.79]
[1724729748554,0.04747027,158.31,158.3,10.9478]
[1724729749263,0.04747027,158.31,158.3,7.79]
[1724729756166,0.04747027,158.31,158.3,10.9478]
[1724729756877,86.37274928,158.5,158.34,3.1569]
[1724729756878,6.3082,158.49,158.34,3.1569]
[1724729757168,15.4604,158.42,158.34,10.9469]
[1724729757565,3.1564,158.38,158.34,10.9469]
[1724729757771,3.1564,158.38,158.36,7.79]
[1724729757973,3.20498812,158.38,158.36,7.79]
[1724729760573,3.20498812,158.38,158.34,0.04182546]
[1724729760574,3.1567,158.36,158.34,0.04182546]
[1724729764976,3.1567,158.36,158.34,7.83182546]
[1724729768383,3.1565,158.37,158.34,7.83182546]
[1724729769878,3.1565,158.37,158.35,7.79]
[1724729774584,3.20488812,158.38,158.35,7.79]
[1724729774980,0.04858812,158.38,158.35,7.79]
[1724729775183,0.04858812,158.38,158.37,7.79]
[1724729775484,0.04858812,158.38,158.36,7.79]
[1724729780295,1.2673,158.47,158.37,11.61]
[1724729780481,1.2673,158.47,158.43,7.79]
[1724729781181,3.1965321,158.48,158.43,7.79]
[1724729781386,0.04838858,158.47,158.45,7.79]
[1724729782089,0.04838858,158.47,158.44,0.04431113]
[1724729782484,1.33218858,158.47,158.44,0.04431113]
[1724729783188,3.1546,158.46,158.44,0.04431113]
[1724729785986,3.1546,158.46,158.44,7.83431113]
[1724729787300,0.04838858,158.47,158.45,7.79]
[1724729788598,3.20288858,158.47,158.45,7.79]
[1724729790401,0.04838858,158.47,158.44,0.04431113]
[1724729790597,7.83838858,158.47,158.44,0.04431113]
[1724729791104,3.1546,158.46,158.44,0.04431113]
[1724729792900,3.1548,158.45,158.44,0.04431113]
[1724729793903,0.04838858,158.47,158.44,7.83431113]
[1724729794094,0.04838858,158.47,158.46,7.79]
[1724729794403,0.04838858,158.47,158.44,7.83431113]
[1724729794607,7.83838858,158.47,158.44,0.04431113]
[1724729794809,7.79,158.46,158.4,3.82]
[1724729795405,1.2183,158.45,158.4,3.82]
[1724729795807,7.79,158.44,158.41,0.04038466]
[1724729796007,7.79,158.42,158.34,3.82]
[1724729796197,7.79,158.4,158.34,3.82]
[1724729796400,7.79,158.4,158.33,10.9472]
[1724729796806,3.1564,158.38,158.33,10.9472]
[1724729797004,0.04107344,158.37,158.34,3.2010552]
[1724729798809,0.04107344,158.37,158.35,7.79]
[1724729802707,3.19757344,158.37,158.35,7.79]
[1724729803314,0.04107344,158.37,158.35,7.79]
[1724729804517,0.04107344,158.37,158.34,3.2010552]
[1724729804518,3.19767344,158.37,158.34,0.0440552]
[1724729805111,3.1567,158.36,158.34,0.0440552]
[1724729806717,3.19757344,158.37,158.34,7.8340552]
[1724729806919,0.04107344,158.37,158.35,7.79]
[1724729807910,0.04107344,158.37,158.36,3.1566]
[1724729809120,0.04107344,158.37,158.36,7.79]
[1724729810526,0.04107344,158.37,158.35,7.79]
[1724729813426,0.04107344,158.37,158.34,0.0440552]
[1724729815229,0.04107344,158.37,158.34,3.2010552]
[1724729815628,0.04107344,158.37,158.35,7.79]
[1724729815828,0.04107344,158.37,158.35,10.9468]
[1724729816129,0.04107344,158.37,158.36,7.79]
[1724729819227,0.04107344,158.37,158.35,10.9468]
[1724729820133,0.04107344,158.37,158.36,3.1566]
[1724729821634,6.3073,158.52,158.38,3.1562]
[1724729821829,11.61,158.46,158.4,7.79]
[1724729822632,3.1556,158.42,158.4,0.04745565]
[1724729825231,3.1553,158.43,158.4,0.04745565]
[1724729825529,0.04837652,158.44,158.41,7.79]
[1724729825731,0.04837652,158.44,158.42,7.79]
[1724729830537,0.04837652,158.44,158.42,10.9454]
[1724729830831,0.04837652,158.44,158.42,7.79]
[1724729831240,0.04837652,158.44,158.43,3.1552]
[1724729836830,0.04837652,158.44,158.43,10.9452]
[1724729837042,3.82,158.53,158.43,10.9452]
[1724729837043,7.79,158.53,158.45,3.1547]
[1724729837337,3.1539,158.5,158.48,7.79]
[1724729837539,2.4496,158.56,158.49,7.79]
[1724729837743,3.1534,158.53,158.49,7.79]
[1724729838138,3.19745081,158.53,158.49,10.98982309]
[1724729839739,3.1534,158.52,158.49,7.83582309]
[1724729839943,3.1534,158.52,158.49,0.04582309]
[1724729841744,3.19745081,158.53,158.49,3.19982309]
[1724729842139,3.1535,158.52,158.49,0.04582309]
[1724729844739,3.19735081,158.53,158.49,3.19982309]
[1724729845142,0.04405081,158.53,158.49,0.04582309]
[1724729845348,3.1535,158.52,158.49,0.04582309]
[1724729845644,7.79,158.51,158.49,0.04582309]
[1724729845845,7.79,158.49,158.36,2.556]
[1724729846040,7.79,158.48,158.41,9.0182]
[1724729846546,3.155,158.45,158.41,12.8382]
[1724729846743,0.04615712,158.45,158.41,0.04668435]
[1724729847044,7.79,158.44,158.41,0.04668435]
[1724729847441,3.1552,158.43,158.41,0.04668435]
[1724729848448,7.83615712,158.45,158.41,0.04668435]
[1724729848449,0.04615712,158.45,158.41,7.83668435]
[1724729848647,0.04615712,158.45,158.42,7.79]
[1724729849147,3.1551,158.44,158.42,7.79]
[1724729850042,0.04615712,158.45,158.42,7.79]
[1724729851349,3.20115712,158.45,158.42,7.79]
[1724729852047,0.04615712,158.45,158.42,7.79]
[1724729852842,0.04615712,158.45,158.44,7.79]
[1724729853346,0.04615712,158.45,158.42,7.79]
[1724729855452,0.04615712,158.45,158.42,10.9453]
[1724729858645,0.04615712,158.45,158.41,0.04668435]
[1724729858646,0.04615712,158.45,158.44,7.79]
[1724729861251,0.04615712,158.45,158.42,10.9454]
[1724729864855,3.20115712,158.45,158.42,7.79]
[1724729865057,0.04615712,158.45,158.42,7.79]
[1724729865556,3.20095712,158.45,158.41,0.04668435]
[1724729865753,3.20095712,158.45,158.41,7.83668435]
[1724729866356,3.20095712,158.45,158.41,10.99218435]
[1724729867755,3.20095712,158.45,158.42,3.1554]
[1724729868659,0.04615712,158.45,158.43,7.79]
[1724729870458,3.20105712,158.45,158.43,7.79]
[1724729875963,0.04615712,158.45,158.44,7.79]
[1724729879158,0.04615712,158.45,158.42,10.9453]
[1724729882162,0.04615712,158.45,158.43,3.1552]
[1724729882360,0.04615712,158.45,158.44,7.79]
[1724729886760,0.04615712,158.45,158.44,10.945]
[1724729888361,0.04615712,158.45,158.43,3.1552]
[1724729891168,0.04615712,158.45,158.41,0.04668435]
[1724729891560,7.79,158.44,158.41,0.04668435]
[1724729892660,3.1554,158.43,158.41,0.04668435]
[1724729893069,7.79,158.44,158.41,0.04668435]
[1724729894267,3.1554,158.42,158.41,0.04668435]
[1724729895070,10.9454,158.42,158.41,0.04668435]
[1724729896567,10.9454,158.42,158.36,14.7665]
[1724729896568,3.156,158.39,158.36,14.7665]
[1724729896771,3.156,158.39,158.36,3.1565]
[1724729897675,3.19672404,158.39,158.36,3.20273002]
[1724729898068,3.19672404,158.39,158.36,10.99273002]
[1724729900674,3.19672404,158.39,158.36,7.83623002]
[1724729904063,0.04072404,158.39,158.38,7.79]
[1724729909778,0.04072404,158.39,158.36,10.99283002]
[1724729925699,0.04072404,158.39,158.38,7.79]
[1724729929292,0.04072404,158.39,158.37,3.1564]
[1724729930805,0.04072404,158.39,158.36,10.99283002]
[1724729931899,0.04072404,158.39,158.36,0.04623002]
[1724729932701,3.19682404,158.39,158.36,0.04623002]
[1724729934406,3.19682404,158.39,158.36,3.20283002]
[1724729934605,0.04072404,158.39,158.36,3.20283002]
[1724729934909,0.04072404,158.39,158.36,10.99283002]
[1724729935204,0.04072404,158.39,158.37,7.79]
[1724729938314,0.04072404,158.39,158.36,10.99283002]
[1724729940607,3.19672404,158.39,158.36,0.04623002]
[1724729941203,3.1564,158.37,158.36,0.04623002]
[1724729942315,3.1563,158.38,158.36,0.04623002]
[1724729953313,3.1564,158.37,158.36,0.04623002]
[1724729953823,0.04072404,158.39,158.36,0.04623002]
[1724729954922,3.1564,158.38,158.36,0.04623002]
[1724729964030,3.1564,158.37,158.36,0.04623002]
[1724729964231,10.9464,158.37,158.36,0.04623002]
[1724729965239,7.79,158.37,158.32,68.47868769]
[1724729965442,7.79,158.37,158.33,3.09478165]
[1724729965443,7.79,158.35,158.33,3.09478165]
[1724729965642,7.79,158.35,158.32,68.47868769]
[1724729965938,3.1572,158.34,158.33,3.09478165]
[1724729966339,3.1572,158.34,158.32,68.52655334]
[1724729967743,3.1582,158.28,158.24,3.159]
[1724729967941,7.79,158.31,158.25,5.1167452]
[1724729968242,10.96541178,158.31,158.26,5.1167452]
[1724729968452,3.17541178,158.31,158.27,3.09554337]
[1724729968654,7.79,158.31,158.24,11.61]
[1724729968945,10.95608063,158.31,158.27,0.04761558]
[1724729969935,3.1579,158.3,158.27,0.04761558]
[1724729973037,3.158,158.29,158.27,0.04761558]
[1724729975441,10.9482,158.28,158.27,0.04761558]
[1724729976454,3.1582,158.28,158.27,0.04761558]
[1724729985056,3.1579,158.3,158.27,0.04761558]
[1724729985258,0.04750796,158.31,158.27,7.83761558]
[1724729985658,3.158,158.3,158.27,7.83761558]
[1724729986864,0.04750796,158.31,158.28,7.79]
[1724729987358,3.20530796,158.31,158.28,7.79]
[1724729990355,3.20530796,158.31,158.27,3.20591558]
[1724729990356,3.1579,158.3,158.27,0.04761558]
[1724729992667,7.83750796,158.31,158.27,0.04761558]
[1724729993271,3.1582,158.29,158.27,0.04761558]
[1724729993968,3.158,158.29,158.27,0.04761558]
[1724730005676,3.1582,158.28,158.27,0.04761558]
[1724730005878,10.9482,158.28,158.27,0.04761558]
[1724730008284,3.1582,158.29,158.27,0.04761558]
[1724730010082,12.22389408,158.31,158.27,0.04761558]
[1724730010083,3.1582,158.28,158.27,0.04761558]
[1724730017195,3.1581,158.29,158.27,0.04761558]
[1724730023001,0.04750796,158.31,158.27,7.83761558]
[1724730024297,3.20520796,158.31,158.28,3.1582]
[1724730026101,0.04750796,158.31,158.27,7.83761558]
[1724730026807,3.20520796,158.31,158.28,3.1582]
[1724730027608,3.20520796,158.31,158.27,10.99601558]
[1724730030410,3.20520796,158.31,158.28,3.09589683]
[1724730030610,3.20520796,158.31,158.27,10.99601558]
[1724730030809,3.20520796,158.31,158.28,3.09589683]
[1724730031016,3.20520796,158.31,158.27,10.99601558]
[1724730031207,3.20520796,158.31,158.28,3.09589682]
[1724730031407,3.20520796,158.31,158.27,10.99601558]
[1724730031608,3.20520796,158.31,158.28,3.09589738]
[1724730031807,3.20520796,158.31,158.27,10.99601558]
[1724730032107,3.20520796,158.31,158.28,3.09589738]
[1724730032307,3.20520796,158.31,158.27,10.99601558]
[1724730032512,3.20520796,158.31,158.28,3.09587282]
[1724730032715,3.20520796,158.31,158.29,3.09587282]
[1724730033009,0.04750796,158.31,158.3,10.88566675]
[1724730033414,0.04750796,158.31,158.3,14.04346675]
[1724730033610,0.04750796,158.31,158.3,16.06451921]
[1724730033810,0.04750796,158.31,158.3,12.96885246]
[1724730034011,0.04750796,158.31,158.3,16.06401223]
[1724730034512,0.04750796,158.31,158.3,8.27401223]
[1724730035311,0.04750796,158.31,158.3,6.25295977]
[1724730035516,0.04750796,158.31,158.3,8.27403057]
[1724730036112,0.04750796,158.31,158.3,3.1578]
[1724730036317,0.04750796,158.31,158.3,8.27410802]
[1724730037419,0.04750796,158.31,158.3,3.09523722]
[1724730039119,0.04750796,158.31,158.27,7.02601558]
[1724730039318,0.04750796,158.31,158.28,5.11714165]
[1724730039519,0.04750796,158.31,158.27,7.02601558]
[1724730039520,0.04750796,158.31,158.29,3.09582123]
[1724730039715,0.04750796,158.31,158.28,2.02132149]
[1724730039916,0.04750796,158.31,158.29,3.09575004]
[1724730040116,0.04750796,158.31,158.28,2.02129005]
[1724730040423,3.20530796,158.31,158.29,3.09579916]
[1724730040720,3.20530796,158.31,158.28,2.02131101]
[1724730041021,3.20530796,158.31,158.29,3.09579916]
[1724730041222,3.20530796,158.31,158.28,2.02131101]
[1724730041418,3.20530796,158.31,158.29,3.09579916]
[1724730041623,3.20530796,158.31,158.28,2.02131101]
[1724730041923,3.20530796,158.31,158.29,3.09579916]
[1724730042123,3.20530796,158.31,158.28,2.02131101]
[1724730042323,3.20530796,158.31,158.29,3.09579916]
[1724730042625,3.20530796,158.31,158.28,2.02131101]
[1724730042830,3.20530796,158.31,158.27,7.02601558]
[1724730043126,3.20530796,158.31,158.29,3.09579916]
[1724730043318,3.20530796,158.31,158.27,7.02601558]
[1724730043627,3.20530796,158.31,158.28,5.11711017]
[1724730043826,3.20530796,158.31,158.29,3.09579916]
[1724730044021,3.20530796,158.31,158.28,2.02131101]
[1724730044220,3.20530796,158.31,158.29,3.09579916]
[1724730044421,3.20530796,158.31,158.28,2.02131101]
[1724730044621,3.20530796,158.31,158.29,3.09579916]
[1724730044921,3.20530796,158.31,158.28,2.02131101]
[1724730045121,3.20530796,158.31,158.29,3.09579916]
[1724730045317,3.20530796,158.31,158.28,2.02131101]
[1724730045622,3.20530796,158.31,158.29,3.09575004]
[1724730045924,3.20530796,158.31,158.28,2.02129005]
[1724730046126,3.20530796,158.31,158.29,3.09575005]
[1724730046321,3.158,158.3,158.27,3.86761558]
[1724730046525,0.04750796,158.31,158.28,2.02129005]
[1724730046526,7.83750796,158.31,158.28,2.02129005]
[1724730046721,7.83750796,158.31,158.29,3.09575103]
[1724730046923,7.83750796,158.31,158.27,0.04761558]
[1724730047119,3.158,158.3,158.28,3.09597203]
[1724730047327,3.158,158.3,158.27,0.04761558]
[1724730047531,3.158,158.3,158.28,3.09617334]
[1724730047829,3.158,158.3,158.27,0.04761558]
[1724730048027,3.158,158.3,158.28,3.09617388]
[1724730048226,3.158,158.3,158.27,0.04761558]
[1724730048435,3.158,158.3,158.28,3.09616328]
[1724730048727,3.158,158.3,158.27,0.04761558]
[1724730048924,3.158,158.3,158.28,3.09616683]
[1724730049125,3.158,158.3,158.27,0.04761558]
[1724730049325,3.158,158.3,158.28,3.09619042]
[1724730049521,3.158,158.3,158.27,0.04761558]
[1724730049931,3.158,158.3,158.28,3.09618731]
[1724730050121,3.158,158.3,158.27,0.04761558]
[1724730050327,3.158,158.3,158.28,3.09613774]
[1724730050527,3.158,158.3,158.27,0.04761558]
[1724730050727,3.158,158.3,158.28,3.09614031]
[1724730051032,3.158,158.3,158.27,0.04761558]
[1724730051228,3.158,158.3,158.28,3.0961664]
[1724730051428,3.158,158.3,158.27,0.04761558]
[1724730051630,3.158,158.3,158.28,3.09616132]
[1724730051929,3.158,158.3,158.27,0.04761558]